Workbook

Sheet 汇总
A1: 序号 | B1: 类别 | C1: 金额（元）
A2: 1 | B2: 建筑材料 | C2: =建筑材料!G177 -> 399380
A3: 2 | B3: 地基基础 | C3: =地基基础!J19 -> 576500
A4: 3 | B4: 市政道路 | C4: =市政道路!K19 -> 108230
A5: 4 | B5: 监测 | C5: =监测!I133 -> 757046.96
A6: 5 | B6: 汇总 | C6: =SUM(C2:C5) -> 1841156.96
A7: 备注：本项目清单中各个类别合计金额和汇总金额仅供各供应商参考计算报价，最高限价及结算价计算方式以磋商文件为准。

Sheet 建筑材料
A1: 佛山市高明区富湾大田工业区排水防涝设施建设项目材料检测清单
A2: 序号 | B2: 检测产品/对象 | C2: 检测项目/参数 | D2: 抽检频率 | E2: 单位 | F2: 数量 （暂估） | G2: 单价（元） | H2: 合价（元） | I2: 收费依据参考 | J2: 备注
A3: =ROW()-2 -> 1 | B3: 水泥 | C3: 胶砂强度 | D3: 同标号，同一出厂编号：散装水泥不超过500t为一批；袋装水泥不超过200t为一批。 | E3: 组 | F3: 15 | G3: 400.00 | H3: =F3*G3 -> 6000.00 | I3: 粤建检协[2015]8号4.1.5
A4: 2 | C4: 凝结时间 | E4: 组 | F4: 15 | G4: 100.00 | H4: 1500.00 | I4: 粤建检协[2015]8号4.1.1
A5: 3 | C5: 安定性 | E5: 组 | F5: 15 | G5: 100.00 | H5: 1500.00 | I5: 粤建检协[2015]8号4.1.3
A6: 4 | C6: 氯离子 | E6: 组 | F6: 15 | G6: 300.00 | H6: 4500.00 | I6: 粤建检协[2015]8号4.1.23
A7: 5 | B7: 砂 | C7: 表观密度 | D7: 不超过400m³或600t为一验收批。 | E7: 组 | F7: 6 | G7: 100.00 | H7: 600.00 | I7: 粤建检协[2015]8号4.4.2
A8: 6 | C8: 颗粒级配 | E8: 组 | F8: 6 | G8: 200.00 | H8: 1,200.00 | I8: 粤建检协[2015]8号4.4.1
A9: 7 | C9: 含泥量 | E9: 组 | F9: 6 | G9: 150.00 | H9: 900.00 | I9: 粤建检协[2015]8号4.4.8
A10: 8 | C10: 泥块含量 | E10: 组 | F10: 6 | G10: 150.00 | H10: 900.00 | I10: 粤建检协[2015]8号4.4.9
A11: 9 | C11: 氯离子 | E11: 组 | F11: 6 | G11: 300.00 | H11: 1,800.00 | I11: 粤建检协[2015]8号4.4.15
A12: 10 | B12: 碎石 | C12: 表观密度 | D12: 不超过400m³或600t为一验收批。 | E12: 组 | F12: 6 | G12: 100.00 | H12: 600.00 | I12: 粤建检协[2015]8号4.5.2
A13: 11 | C13: 颗粒级配 | E13: 组 | F13: 6 | G13: 200.00 | H13: 1200.00 | I13: 粤建检协[2015]8号4.5.1
A14: 12 | C14: 含泥量 | E14: 组 | F14: 6 | G14: 150.00 | H14: 900.00 | I14: 粤建检协[2015]8号4.5.8
A15: 13 | C15: 泥块含量 | E15: 组 | F15: 6 | G15: 150.00 | H15: 900.00 | I15: 粤建检协[2015]8号4.5.9
A16: 14 | C16: 坚固性 | E16: 组 | F16: 6 | G16: 800.00 | H16: 4800.00 | I16: 粤建检协[2015]8号4.5.10
A17: 15 | C17: 针片状颗粒含量 | E17: 组 | F17: 6 | G17: 200.00 | H17: 1200.00 | I17: 粤建检协[2015]8号4.5.11
A18: 16 | C18: 压碎指标 | E18: 组 | F18: 6 | G18: 300.00 | H18: 1800.00 | I18: 粤建检协[2015]8号4.5.12
A19: 17 | B19: 粉煤灰 | C19: 需水量比 | D19: 连续供应的200t相同等级的粉煤灰为一批。 | E19: 组 | F19: 6 | G19: 200.00 | H19: 1200.00 | I19: 粤建检协[2015]8号4.13.5
A20: 18 | C20: 烧失量 | E20: 组 | F20: 6 | G20: 300.00 | H20: 1800.00 | I20: 粤建检协[2015]8号4.13.9
A21: 19 | C21: 三氧化硫 | E21: 组 | F21: 6 | G21: 300.00 | H21: 1800.00 | I21: 粤建检协[2015]8号4.13.10
A22: 20 | C22: 碱含量 | E22: 组 | F22: 6 | G22: 300.00 | H22: 1800.00 | I22: 粤建检协[2015]8号4.13.13
A23: 21 | C23: 安定性 | E23: 组 | F23: 6 | G23: 100.00 | H23: 600.00 | I23: 粤建检协[2015]8号4.13.7
A24: 22 | C24: 游离氧化钙 | E24: 组 | F24: 6 | G24: 300.00 | H24: 1800.00 | I24: 粤建检协[2015]8号4.13.12
A25: 23 | B25: 矿渣粉 | C25: 比表面积 | D25: 不超过200t为一批； | E25: 组 | F25: 6 | G25: 350.00 | H25: 2100.00 | I25: 粤建检协[2015]8号4.13.3
A26: 24 | C26: 活性指数 | E26: 组 | F26: 6 | G26: 800.00 | H26: 4800.00 | I26: 粤建检协[2015]8号4.13.8
A27: 25 | C27: 流动度比 | E27: 组 | F27: 6 | G27: 200.00 | H27: 1200.00 | I27: 粤建检协[2015]8号4.13.6
A28: 26 | C28: 三氧化硫 | E28: 组 | F28: 6 | G28: 300.00 | H28: 1800.00 | I28: 粤建检协[2015]8号4.13.10
A29: 27 | C29: 烧失量 | E29: 组 | F29: 6 | G29: 300.00 | H29: 1800.00 | I29: 粤建检协[2015]8号4.13.9
A30: 28 | B30: 外加剂 | C30: 减水率 | D30: 不超过 30t 为一批。 | E30: 组 | F30: 6 | G30: 200.00 | H30: 1200.00 | I30: 粤建检协[2015]8号4.11.15
A31: 29 | C31: 泌水率比 | E31: 组 | F31: 6 | G31: 600.00 | H31: 3600.00 | I31: 粤建检协[2015]8号4.11.16
A32: 30 | C32: 抗压强度比 | E32: 组 | F32: 6 | G32: 800.00 | H32: 4800.00 | I32: 粤建检协[2015]8号4.11.10
A33: 31 | C33: 氯离子含量 | E33: 组 | F33: 6 | G33: 300.00 | H33: 1800.00 | I33: 粤建检协[2015]8号4.11.7
A34: 32 | C34: 总碱量 | E34: 组 | F34: 6 | G34: 300.00 | H34: 1800.00 | I34: 粤建检协[2015]8号4.11.10
A35: 33 | B35: 混凝土配合比 | C35: 配合比设计/验证 | D35: 同一混凝土配合比设计送检一次； 当水泥、外加剂或矿物掺合料等原材料品种、质量有显著变化时，或对混凝土性能有特殊要求时，应重新进行配合比设计。 | E35: 组 | F35: 6 | G35: 1000.00 | H35: 6000.00 | I35: 粤建检协[2015]8号4.8.9
A36: 34 | B36: 混凝土试块 | C36: 抗压强度 | D36: 连续浇筑同标号100m3各1组 | E36: 组 | F36: 100 | G36: 60.00 | H36: 6,000.00 | I36: 粤建检协[2015]8号4.8.10
A37: 35 | C37: 抗折强度 | D37: 连续浇筑同标号100m3各1组 | E37: 组 | F37: 40 | G37: 300.00 | H37: 12,000.00 | I37: 粤建检协[2015]8号4.8.14
A38: 36 | B38: 水泥净浆试块抗压 | C38: 抗压强度 | D38: 每工作班留置一组 | E38: 组 | F38: 6 | G38: 50.00 | H38: 300.00 | I38: 市场价
A39: 37 | B39: 砂浆试块 | C39: 抗压强度 | D39: 每一班次不少于一组 | E39: 组 | F39: 20 | G39: 50.00 | H39: 1,000.00 | I39: 粤建检协[2015]8号4.9.10
A40: 38 | B40: 钢筋原材（抗震） | C40: 屈服强度、抗拉强度、断后伸长率、弯曲 | D40: 同一牌号、同一炉灌号、同一规格为验收批，重量不大于60吨。 | E40: 组 | F40: 50 | G40: 150.00 | H40: 7500.00 | I40: 粤建检协[2015]8号4.16.1
A41: 39 | C41: 重量偏差 | E41: 组 | F41: 50 | G41: 50.00 | H41: 2500.00 | I41: 粤建检协[2015]8号4.16.2
A42: 40 | C42: 强屈比、超强比 | E42: 组 | F42: 50 | G42: 50.00 | H42: 2500.00 | I42: 粤建检协[2015]8号4.16.4
A43: 41 | C43: 最大力总伸长率 | E43: 组 | F43: 50 | G43: 50.00 | H43: 2500.00 | I43: 粤建检协[2015]8号4.16.3
A44: 42 | C44: 反向弯曲 | E44: 组 | F44: 50 | G44: 80.00 | H44: 4000.00 | I44: 粤建检协[2015]8号4.16.6
A45: 43 | B45: 钢筋原材（非抗震） | C45: 屈服强度、抗拉强度、断后伸长率、弯曲 | D45: 同一牌号、同一炉灌号、同一规格为验收批，重量不大于60吨。 | E45: 组 | F45: 5 | G45: 150.00 | H45: 750.00 | I45: 粤建检协[2015]8号4.16.1
A46: 44 | C46: 重量偏差 | E46: 组 | F46: 5 | G46: 50.00 | H46: 250.00 | I46: 粤建检协[2015]8号4.16.2
A47: 45 | C47: 最大力总伸长率 | E47: 组 | F47: 5 | G47: 50.00 | H47: 250.00 | I47: 粤建检协[2015]8号4.16.4
A48: 46 | B48: 钢筋焊接 | C48: 抗拉强度 | D48: 同一牌号、同直径300个为一批。 | E48: 组 | F48: 10 | G48: 100.00 | H48: 1000.00 | I48: 粤建检协[2015]8号4.17.1
A49: 47 | B49: 机械连接 | C49: 抗拉强度 | D49: 同一牌号、同直径500个/批 | E49: 组 | F49: 20 | G49: 100.00 | H49: 2000.00 | I49: 粤建检协[2015]8号4.18.1
A50: 48 | C50: 残余变形 | E50: 组 | F50: 3 | G50: 500.00 | H50: 1500.00 | I50: 粤建检协[2015]8号4.18.4
A51: 49 | B51: 钢管圆管 | C51: 屈服强度、抗拉强度、断后伸长率、弯曲 | D51: 每批按同一牌号、同一炉号、同一规格和同一热处理组成。 | E51: 组 | F51: 3 | G51: 500.00 | H51: 1,500.00 | I51: 粤建检协[2015]8号4.25.3
A52: 50 | B52: 钢材原材 | C52: 拉伸、弯曲 | D52: 同一牌号、同一炉号、同一质量等级、同一品种、同一规格、同一热处理为验收批，重量不大于60吨 | E52: 组 | F52: 5 | G52: 150.00 | H52: 750.00 | I52: 粤建检协[2015]8号4.16.1
A53: 51 | B53: 普通螺栓 | C53: 拉力试验 | D53: 按不同材料进场批次，每种规格每批次抽1组 | E53: 组 | F53: 3 | G53: 600.00 | H53: 1800.00 | I53: 市场价
A54: 52 | C54: 剪切试验 | E54: 组 | F54: 3 | G54: 500.00 | H54: 1500.00 | I54: 粤建检协[2015]8号4.20.7
A55: 53 | B55: 土工格栅 | C55: 抗拉强度/断裂强力 | D55: 10000㎡为一批 | E55: 组 | F55: 3 | G55: 400.00 | H55: 1,200.00 | I55: 粤建检协[2015]8号10.18.8
A56: 54 | C56: 标称伸长率/断后伸长率 | E56: 组 | F56: 3 | G56: 300.00 | H56: 900.00 | I56: 粤建检协[2015]8号10.18.9
A57: 55 | B57: 土工布 | C57: 厚度 | D57: 10000㎡为一批 | E57: 组 | F57: 5 | G57: 100.00 | H57: 500.00 | I57: 粤建检协[2015]8号10.18.2
A58: 56 | C58: 单位面积质量偏差 | E58: 组 | F58: 5 | G58: 100.00 | H58: 500.00 | I58: 粤建检协[2015]8号10.18.1
A59: 57 | C59: 垂直渗透系数 | E59: 组 | F59: 5 | G59: 600.00 | H59: 3000.00 | I59: 粤建检协[2015]8号10.18.6
A60: 58 | C60: 断裂强力 | E60: 组 | F60: 5 | G60: 400.00 | H60: 2000.00 | I60: 粤建检协[2015]8号10.18.8
A61: 59 | C61: 纵、横向标称强度对应伸长率 | E61: 组 | F61: 5 | G61: 400.00 | H61: 2000.00 | I61: 粤建检协[2015]8号10.18.19
A62: 60 | B62: 土工材料 | C62: 击实试验 | D62: 按相同土质为同一批次，每批取一组 | E62: 组 | F62: 10 | G62: 800.00 | H62: 8,000.00 | I62: 粤建检协[2015]8号10.11.1
A63: =ROW()-2 -> 61 | B63: 改性沥青 | C63: 针入度 | D63: 每车或每50t检测一次 | E63: 组 | F63: 2 | G63: 200.00 | H63: =F63*G63 -> 400.00 | I63: 粤建检协[2015]8号10.9.2
A64: 62 | C64: 针入度指数 | E64: 组 | F64: 2 | G64: 300.00 | H64: 600.00 | I64: 粤建检协[2015]8号10.9.24
A65: 63 | C65: 延度 | E65: 组 | F65: 2 | G65: 300.00 | H65: 600.00 | I65: 粤建检协[2015]8号10.9.3
A66: 64 | C66: 软化点 | E66: 组 | F66: 2 | G66: 150.00 | H66: 300.00 | I66: 粤建检协[2015]8号10.9.4
A67: 65 | C67: 运动粘度 | E67: 组 | F67: 2 | G67: 1000.00 | H67: 2,000.00 | I67: 粤建检协[2015]8号10.9.15
A68: 66 | C68: 闪点 | E68: 组 | F68: 2 | G68: 200.00 | H68: 400.00 | I68: 粤建检协[2015]8号10.9.10
A69: 67 | C69: 溶解度 | E69: 组 | F69: 2 | G69: 200.00 | H69: 400.00 | I69: 粤建检协[2015]8号10.9.8
A70: 68 | C70: 弹性恢复 | E70: 组 | F70: 2 | G70: 300.00 | H70: 600.00 | I70: 粤建检协[2015]8号10.9.18
A71: 69 | C71: 贮存稳定性 | E71: 组 | F71: 2 | G71: 600.00 | H71: 1,200.00 | I71: 粤建检协[2015]8号10.9.17
A72: 70 | C72: TFOT后（质量变化、残留针入度比、残留延度） | E72: 组 | F72: 2 | G72: 500.00 | H72: 1,000.00 | I72: 粤建检协[2015]8号10.9.6
A73: 71 | B73: 石油沥青 | C73: 针入度 | D73: 同一厂家的同一品种、同一类型的进厂材料应至少抽取一组样品进行复验 | E73: 组 | F73: 2 | G73: 200.00 | H73: 400.00 | I73: 粤建检协[2015]8号10.9.2
A74: 72 | C74: 针入度指数 | E74: 组 | F74: 2 | G74: 300.00 | H74: 600.00 | I74: 粤建检协[2015]8号10.9.24
A75: 73 | C75: 软化点 | E75: 组 | F75: 2 | G75: 150.00 | H75: 300.00 | I75: 粤建检协[2015]8号10.9.4
A76: 74 | C76: 动力粘度 | E76: 组 | F76: 2 | G76: 1500.00 | H76: 3,000.00 | I76: 粤建检协[2015]8号10.9.14
A77: 75 | C77: 延度 | E77: 组 | F77: 2 | G77: 200.00 | H77: 400.00 | I77: 粤建检协[2015]8号10.9.3
A78: 76 | C78: 蜡含量 | E78: 组 | F78: 2 | G78: 4000.00 | H78: 8,000.00 | I78: 粤建检协[2015]8号10.9.5
A79: 77 | C79: 闪点 | E79: 组 | F79: 2 | G79: 200.00 | H79: 400.00 | I79: 粤建检协[2015]8号10.9.10
A80: 78 | C80: 密度 | E80: 组 | F80: 2 | G80: 180.00 | H80: 360.00 | I80: 粤建检协[2015]8号10.9.1
A81: 79 | C81: TFOT后（质量变化、残留针入度比、残留延度） | E81: 组 | F81: 2 | G81: 500.00 | H81: 1,000.00 | I81: 粤建检协[2015]8号10.9.6
A82: 80 | B82: 乳化沥青 | C82: 恩格拉粘度 | D82: 每车或每100t检测一次 | E82: 组 | F82: 2 | G82: 300.00 | H82: 600.00 | I82: 粤建检协[2015]8号10.9.22
A83: 81 | C83: 储存稳定度 | E83: 组 | F83: 2 | G83: 600.00 | H83: 1,200.00 | I83: 粤建检协[2015]8号10.9.17
A84: 82 | C84: 筛上残余物 | E84: 组 | F84: 2 | G84: 200.00 | H84: 400.00 | I84: 粤建检协[2015]8号10.9.20
A85: 83 | C85: 与粗集料的粘附性 | E85: 组 | F85: 2 | G85: 150.00 | H85: 300.00 | I85: 粤建检协[2015]8号10.9.7
A86: 84 | C86: 蒸发残留物（针入度、延度、溶解度、残留分含量） | E86: 组 | F86: 2 | G86: 200.00 | H86: 400.00 | I86: 粤建检协[2015]8号10.9.19
A87: 85 | B87: 粗集料 | C87: 压碎值 | D87: 以400m3或600吨为一验收批 | E87: 组 | F87: 2 | G87: 300.00 | H87: 600.00 | I87: 粤建检协[2015]8号4.5.12
A88: 86 | C88: 筛分 | E88: 组 | F88: 2 | G88: 200.00 | H88: 400.00 | I88: 粤建检协[2015]8号4.5.1
A89: 87 | C89: 洛杉矶磨耗损失 | E89: 组 | F89: 2 | G89: 500.00 | H89: 1,000.00 | I89: 粤建检协[2015]8号4.5.17
A90: 88 | C90: 表观相对密度 | E90: 组 | F90: 2 | G90: 100.00 | H90: 200.00 | I90: 粤建检协[2015]8号4.5.2
A91: 89 | C91: 吸水率 | E91: 组 | F91: 2 | G91: 100.00 | H91: 200.00 | I91: 粤建检协[2015]8号4.5.7
A92: 90 | C92: 坚固性 | E92: 组 | F92: 2 | G92: 800.00 | H92: 1,600.00 | I92: 粤建检协[2015]8号4.5.10
A93: 91 | C93: 针片状颗粒含量 | E93: 组 | F93: 2 | G93: 200.00 | H93: 400.00 | I93: 粤建检协[2015]8号4.5.11
A94: 92 | C94: 软石含量 | E94: 组 | F94: 2 | G94: 300.00 | H94: 600.00 | I94: 粤建检协[2015]8号4.5.20
A95: 93 | C95: 磨光值 | E95: 组 | F95: 2 | G95: 2000.00 | H95: 4,000.00 | I95: 粤建检协[2015]8号4.5.18
A96: 94 | C96: 沥青粘附性 | E96: 组 | F96: 2 | G96: 150.00 | H96: 300.00 | I96: 粤建检协[2015]8号10.9.7
A97: 95 | C97: 水洗法＜0.075mm颗粒含量 | E97: 组 | F97: 2 | G97: 150.00 | H97: 300.00 | I97: 粤建检协[2015]8号4.5.8
A98: 96 | B98: 细集料 | C98: 表观密度 | D98: 以400m3或600吨为一验收批 | E98: 组 | F98: 2 | G98: 100.00 | H98: 200.00 | I98: 粤建检协[2015]8号4.4.2
A99: 97 | C99: 筛分 | E99: 组 | F99: 2 | G99: 200.00 | H99: 400.00 | I99: 粤建检协[2015]8号4.4.1
A100: 98 | C100: 坚固性 | E100: 组 | F100: 2 | G100: 800.00 | H100: 1,600.00 | I100: 粤建检协[2015]8号4.4.10
A101: 99 | C101: 含泥量 | E101: 组 | F101: 2 | G101: 150.00 | H101: 300.00 | I101: 粤建检协[2015]8号4.4.8
A102: 100 | C102: 砂当量 | E102: 组 | F102: 2 | G102: 300.00 | H102: 600.00 | I102: 粤建检协[2015]8号4.4.21
A103: 101 | C103: 亚甲蓝值 | E103: 组 | F103: 2 | G103: 500.00 | H103: 1,000.00 | I103: 粤建检协[2015]8号4.4.18
A104: 102 | C104: 凌角性（流动时间） | E104: 组 | F104: 2 | G104: 300.00 | H104: 600.00 | I104: 粤建检协[2015]8号4.4.23
A105: 103 | B105: 矿粉 | C105: 表观相对密度 | D105: 同一厂家的同一品种、同一类型的进厂材料应至少抽取一组样品进行复验 | E105: 组 | F105: 2 | G105: 100.00 | H105: 200.00 | I105: 粤建检协[2015]8号10.8.2
A106: 104 | C106: 含水量 | E106: 组 | F106: 2 | G106: 100.00 | H106: 200.00 | I106: 粤建检协[2015]8号10.8.6
A107: 105 | C107: 筛分 | E107: 组 | F107: 2 | G107: 200.00 | H107: 400.00 | I107: 粤建检协[2015]8号10.8.1
A108: 106 | C108: 亲水系数 | E108: 组 | F108: 2 | G108: 500.00 | H108: 1,000.00 | I108: 粤建检协[2015]8号10.8.3
A109: 107 | C109: 塑性指数 | E109: 组 | F109: 2 | G109: 500.00 | H109: 1,000.00 | I109: 粤建检协[2015]8号10.8.4
A110: 108 | C110: 加热安定性 | E110: 组 | F110: 2 | G110: 150.00 | H110: 300.00 | I110: 粤建检协[2015]8号10.8.5
A111: 109 | B111: 沥青混合料配合比设计 | C111: 配合比设计 | D111: 按不同材料进厂批次，每种规格每批次抽1组 | E111: 组 | F111: 3 | G111: 10000.00 | H111: 30,000.00 | I111: 粤建检协[2015]8号10.10.1
A112: 110 | B112: 沥青混合料 | C112: 马歇尔密度、沥青用量及矿料级配检验 | D112: 按不同材料进厂批次，每种规格每批次抽1组 | E112: 组 | F112: 3 | G112: 1780.00 | H112: 5,340.00 | I112: 粤建检协[2015]8号10.10.3
A113: 111 | C113: 稳定度、流值 | E113: 组 | F113: 3 | G113: 780.00 | H113: 2,340.00 | I113: 粤建检协[2015]8号10.10.4
A114: 112 | C114: 车辙试验 | E114: 组 | F114: 3 | G114: 6000.00 | H114: 18,000.00 | I114: 粤建检协[2015]8号10.10.8
A115: 113 | B115: 透水混凝土 | C115: 透水系数 | D115: 同一配比，同一强度等级各检测1组 | E115: 组 | F115: 3 | G115: 1500.00 | H115: 4,500.00 | I115: 市场价
A116: =ROW()-2 -> 114 | C116: 抗压强度 | E116: 组 | F116: 3 | G116: 300.00 | H116: =F116*G116 -> 900.00 | I116: 市场价
A117: 115 | C117: 弯拉强度 | E117: 组 | F117: 3 | G117: 500.00 | H117: 1,500.00 | I117: 市场价
A118: 116 | B118: 透水路面砖 | C118: 抗压强度 | D118: 按不同材料进厂批次，每种规格每批次抽1组 | E118: 组 | F118: 3 | G118: 300.00 | H118: 900.00 | I118: 粤建检协[2015]8号10.13.3
A119: 117 | C119: 抗折强度 | E119: 组 | F119: 3 | G119: 200.00 | H119: 600.00 | I119: 粤建检协[2015]8号10.13.4
A120: 118 | C120: 透水系数 | E120: 组 | F120: 3 | G120: 1500.00 | H120: 4,500.00 | I120: 市场价
A121: 119 | C121: 防滑性 | E121: 组 | F121: 3 | G121: 500.00 | H121: 1,500.00 | I121: 市场价
A122: 120 | C122: 耐磨性 | E122: 组 | F122: 3 | G122: 600.00 | H122: 1,800.00 | I122: 市场价
A123: 121 | B123: 砌墙砖 | C123: 抗压强度 | D123: 10万块为一批 | E123: 组 | F123: 4 | G123: 300.00 | H123: 1,200.00 | I123: 粤建检协[2015]8号4.26.4
A124: 122 | B124: 井盖/箅子 | C124: 承载能力 | D124: 500套为1批 | E124: 组 | F124: 10 | G124: 900.00 | H124: 9,000.00 | I124: 粤建检协[2015]8号10.16.1
A125: 123 | C125: 残余变形 | E125: 组 | F125: 10 | G125: 500.00 | H125: 5,000.00 | I125: 粤建检协[2015]8号10.16.2
A126: 124 | B126: 防坠网 | C126: 断裂强力 | D126: 同一厂家的同一品种、同一类型的进厂材料应至少抽取一组样品进行复验 | E126: 组 | F126: 5 | G126: 500.00 | H126: 2500.00 | I126: 粤建检协[2015]8号7.14.1
A127: 125 | B127: 橡胶止水带 | C127: 拉伸强度、拉断伸长率 | D127: 同标记的膨胀橡胶产量为一批 | E127: 组 | F127: 3 | G127: 400.00 | H127: 1200.00 | I127: 粤建检协[2015]8号4.41.2
A128: 126 | C128: 硬度 | E128: 组 | F128: 3 | G128: 200.00 | H128: 600.00 | I128: 粤建检协[2015]8号4.41.1
A129: 127 | B129: 钢筋混凝土排水管 | C129: 裂缝荷载 | D129: 组批规则详见标准GB/T 11836-2009中的8.2.2条 | E129: 组 | F129: 20 | G129: 2000.00 | H129: 40,000.00 | I129: 粤建检协[2015]8号10.19.9
A130: 128 | C130: 破坏荷载 | E130: 组 | F130: 20 | G130: 2000.00 | H130: 40,000.00 | I130: 粤建检协[2015]8号10.19.5
A131: 129 | B131: 预制混凝土检查井 | C131: 承载力试验 | D131: 同一厂家的同一品种、同一类型的进厂材料应至少抽取一组样品进行复验 | E131: 组 | F131: 5 | G131: 2000.00 | H131: 10,000.00 | I131: 粤建检协[2015]8号10.19.5
A132: 130 | C132: 外观质量 | E132: 组 | F132: 5 | G132: 500.00 | H132: 2,500.00 | I132: 粤建检协[2015]8号10.19.3
A133: 131 | C133: 尺寸偏差 | E133: 组 | F133: 5 | G133: 500.00 | H133: 2,500.00 | I133: 粤建检协[2015]8号10.19.4
A134: 132 | C134: 保护层厚度 | E134: 组 | F134: 5 | G134: 500.00 | H134: 2,500.00 | I134: 粤建检协[2015]8号10.19.2
A135: 133 | B135: 聚乙烯排水管 | C135: 环刚度 | D135: 不超过60t为一批 | E135: 组 | F135: 5 | G135: 600.00 | H135: 3,000.00 | I135: 粤建检协[2015]8号4.43.9
A136: 134 | C136: 环柔性 | E136: 组 | F136: 5 | G136: 400.00 | H136: 2,000.00 | I136: 粤建检协[2015]8号4.43.10
A137: 135 | C137: 烘箱试验 | E137: 组 | F137: 5 | G137: 200.00 | H137: 1,000.00 | I137: 粤建检协[2015]8号4.43.12
A138: 136 | C138: 冲击性能 | E138: 组 | F138: 5 | G138: 300.00 | H138: 1,500.00 | I138: 粤建检协[2015]8号4.43.6
A139: 137 | B139: 玻璃纤维增强树脂材料 | C139: 拉伸强度 | D139: 同一厂家的同一品种、同一类型的进厂材料应至少抽取一组样品进行复验 | E139: 组 | F139: 3 | G139: 1000.00 | H139: 3,000.00 | I139: 市场价
A140: 138 | C140: 弯曲强度 | E140: 组 | F140: 3 | G140: 1000.00 | H140: 3,000.00 | I140: 市场价
A141: 139 | C141: 弯曲弹性模量
A142: =ROW()-2 -> 140 | B142: PVC-U排水管材 | C142: 外观 | D142: 不超过50t为一批。 | E142: 组 | F142: 3 | G142: 50.00 | H142: =F142*G142 -> 150.00 | I142: 粤建检协[2015]8号4.43.1
A143: 141 | C143: 平均外径 | E143: 组 | F143: 3 | G143: 100.00 | H143: 300.00 | I143: 粤建检协[2015]8号4.43.2
A144: 142 | C144: 拉伸屈服应力 | E144: 组 | F144: 3 | G144: 400.00 | H144: 1,200.00 | I144: 粤建检协[2015]8号4.43.3
A145: 143 | C145: 维卡软化温度 | E145: 组 | F145: 3 | G145: 250.00 | H145: 750.00 | I145: 粤建检协[2015]8号4.43.4
A146: 144 | C146: 落锤冲击 | E146: 组 | F146: 3 | G146: 300.00 | H146: 900.00 | I146: 粤建检协[2015]8号4.43.6
A147: 145 | C147: 纵向回缩率 | E147: 组 | F147: 3 | G147: 200.00 | H147: 600.00 | I147: 粤建检协[2015]8号4.43.8
A148: 146 | C148: 断裂伸长率 | E148: 组 | F148: 3 | G148: 400.00 | H148: 1,200.00 | I148: 粤建检协[2015]8号4.43.3
A149: 147 | B149: 镀锌钢管 | C149: 镀锌层表面质量 | D149: 批次数量：外径不大于219.1mm，每个班次生产的钢管；外径大于219.1mm但不大于406.4mm，200根；外径大于406.4mm，100根 | E149: 组 | F149: 3 | G149: 100.00 | H149: 300.00 | I149: 粤建检协[2015]8号4.25.1
A150: 148 | C150: 镀锌层的附着力 | E150: 组 | F150: 3 | G150: 200.00 | H150: 600.00 | I150: 粤建检协[2015]8号4.25.9
A151: 149 | C151: 镀锌层均匀性 | E151: 组 | F151: 3 | G151: 200.00 | H151: 600.00 | I151: 粤建检协[2015]8号4.25.8
A152: 150 | C152: 力学性能 | E152: 组 | F152: 3 | G152: 500.00 | H152: 1500.00 | I152: 粤建检协[2015]8号4.25.3
A153: 151 | B153: 电力管/通信管 | C153: 外观 | D153: 同一工艺、型号规格1200根为一批或两个月内生产总数不足1200根，但不少于150根时可作为一批。 | E153: 组 | F153: 2 | G153: 50.00 | H153: 100.00 | I153: 粤建检协[2015]8号4.47.1
A154: 152 | C154: 环刚度 | E154: 组 | F154: 2 | G154: 300.00 | H154: 600.00 | I154: 粤建检协[2015]8号4.47.4
A155: 153 | C155: 压扁试验 | E155: 组 | F155: 2 | G155: 300.00 | H155: 600.00 | I155: 粤建检协[2015]8号4.47.5
A156: 154 | C156: 落锤冲击 | E156: 组 | F156: 2 | G156: 200.00 | H156: 400.00 | I156: 粤建检协[2015]8号4.47.3
A157: 155 | B157: 电线电缆 | C157: 结构尺寸检查(绝缘厚度、外径） | D157: 按一次进货同类型、同一厂家、型号、规格、批号的产品为一批。 | E157: 芯 | F157: 3 | G157: 180.00 | H157: 540.00 | I157: 粤建检协[2015]8号4.55.2
A158: 156 | C158: 导体检查（导体种类、导体直流电阻） | E158: 芯 | F158: 3 | G158: 150.00 | H158: 450.00 | I158: 粤建检协[2015]8号4.55.6
A159: 157 | C159: 电压试验 | E159: 芯 | F159: 3 | G159: 150.00 | H159: 450.00 | I159: 粤建检协[2015]8号4.55.8
A160: 158 | C160: 绝缘电阻 | E160: 芯 | F160: 3 | G160: 150.00 | H160: 450.00 | I160: 粤建检协[2015]8号4.55.7
A161: 159 | C161: 热延伸试验 | E161: 组 | F161: 1 | G161: 400.00 | H161: 400.00 | I161: 粤建检协[2015]8号4.55.5
A162: 160 | C162: 绝缘层老化前机械性能 | E162: 组 | F162: 1 | G162: 250.00 | H162: 250.00 | I162: 粤建检协[2015]8号4.55.3
A163: 161 | B163: 标线涂料 | C163: 密度 | D163: 同一厂家、规格型号为一批 | E163: 组 | F163: 1 | G163: 200.00 | H163: 200.00 | I163: 市场价
A164: 162 | C164: 抗压强度 | E164: 组 | F164: 1 | G164: 500.00 | H164: 500.00 | I164: 市场价
A165: 163 | C165: 涂膜外观 | E165: 组 | F165: 1 | G165: 50.00 | H165: 50.00 | I165: 市场价
A166: 164 | C166: 不粘胎干燥时间 | E166: 组 | F166: 1 | G166: 150.00 | H166: 150.00 | I166: 市场价
A167: 165 | C167: 色度性能 | E167: 组 | F167: 1 | G167: 500.00 | H167: 500.00 | I167: 市场价
A168: 166 | C168: 耐磨性 | E168: 组 | F168: 1 | G168: 600.00 | H168: 600.00 | I168: 市场价
A169: 167 | C169: 耐水性 | E169: 组 | F169: 1 | G169: 300.00 | H169: 300.00 | I169: 市场价
A170: 168 | C170: 耐碱性 | E170: 组 | F170: 1 | G170: 300.00 | H170: 300.00 | I170: 市场价
A171: 169 | B171: 反光膜 | C171: 外观质量 | D171: 同一厂家、规格型号为一批 | E171: 组 | F171: 1 | G171: 50.00 | H171: 50.00 | I171: 市场价
A172: 170 | C172: 抗拉荷载 | E172: 组 | F172: 1 | G172: 500.00 | H172: 500.00 | I172: 市场价
A173: 171 | C173: 色度性能 | E173: 组 | F173: 1 | G173: 300.00 | H173: 300.00 | I173: 市场价
A174: 172 | C174: 逆反射系数 | E174: 组 | F174: 1 | G174: 300.00 | H174: 300.00 | I174: 市场价
A175: 173 | C175: 附着性能 | E175: 组 | F175: 1 | G175: 250.00 | H175: 250.00 | I175: 市场价
A176: 174 | B176: 铝合金标志底板 | C176: 力学性能 | D176: 同一厂家、规格型号为一批 | E176: 组 | F176: 1 | G176: 500.00 | H176: 500.00 | I176: 粤建检协[2015]8号4.29.2
A177: 合计（元） | G177: =SUM(H3:H176) -> 399380

Sheet 地基基础
A1: 佛山市高明区富湾大田工业区排水防涝设施建设项目
A2: 序号 | B2: 工程部位 | C2: 分项工程部位 | D2: 检测项目 | E2: 单位 | F2: 检测频率 | G2: 参照规范 | H2: 检测数量 | I2: 综合单价 | J2: 小计（元） | K2: 收费依据
A3: 1 | B3: 雨水工程 | C3: 雨水箱涵素混凝土桩 | D3: 低应变 | E3: 根 | F3: 不少于总桩数的10%，且不少于10根（结构物基础） | G3: 《建筑地基基础检测规范》DBJ/T 15-60-2019 | H3: 285 | I3: 500 | J3: =I3*H3 -> 142500 | K3: 粤建检协〔2015〕8号第1.3.1
A4: 2 | C4: 雨水箱涵素混凝土桩 | D4: 钻芯 | E4: 根 | F4: 不少于总桩数的0.5%且不少于3根 | G4: 《建筑地基基础检测规范》DBJ/T 15-60-2019 | H4: 15 | I4: 400/米 | J4: =H4*400*15 -> 90000 | K4: 粤建检协〔2015〕8号第1.3.1 | L4: 按平均桩长11米预估
A5: 3 | C5: 雨水箱涵素混凝土桩 | D5: 复合地基静载 | E5: 点 | F5: 总桩数的0.5%-1%，且不少于3点 | G5: 《建筑地基基础检测规范》DBJ/T 15-60-2019 | H5: 14 | I5: 10000 | J5: =I5*H5 -> 140000 | K5: 粤建检协〔2015〕8号第1.3.1
A6: 4 | C6: 雨水箱涵高压旋喷桩桩 | D6: 钻芯 | E6: 根 | F6: 总桩数的0.5%-1%，且不少于3点 | G6: 《建筑地基基础检测规范》DBJ/T 15-60-2019 | H6: 3 | I6: 280/米 | J6: =H6*280*12 -> 10080 | L6: 按平均桩长11米预估
A7: 5 | C7: 雨水箱涵高压旋喷桩桩 | D7: 复合地基静载 | E7: 点 | F7: 总桩数的0.5%-1%，且不少于3点 | G7: 《建筑地基基础检测规范》DBJ/T 15-60-2019 | H7: 3 | I7: 10000 | J7: =I7*H7 -> 30000
A8: 6 | C8: 雨水箱涵高压旋喷桩桩 | D8: 单桩承载力 | E8: 点 | F8: 总桩数的1%，且不少于3点 | G8: 《建筑地基基础检测规范》DBJ/T 15-60-2019 | H8: 3 | I8: 10000 | J8: =I8*H8 -> 30000
A9: 7 | B9: 顶管井 | C9: JFW15止水帷幕搅拌桩 | D9: 钻芯 | E9: 根 | F9: 总桩数的0.5%-1%，且不少于3点 | G9: 《建筑地基基础检测规范》DBJ/T 15-60-2019 | H9: 3 | I9: 280/米 | J9: =H9*280*12 -> 10080 | L9: 直径500，90根，桩长11米
A10: 8 | C10: JFW15高压旋喷桩 | D10: 钻芯 | E10: 根 | F10: 总桩数的0.5%-1%，且不少于3点 | G10: 《建筑地基基础检测规范》DBJ/T 15-60-2019 | H10: 3 | I10: 280/米 | J10: =H10*280*12 -> 10080 | L10: 直径500，39根，按桩长11米预估
A11: 9 | C11: JFW6软基处理 | D11: 单桩承载力 | E11: 点 | F11: 总桩数的1%，且不少于3点；总桩数少于50根时，不少于2点 | G11: 《建筑地基基础检测规范》DBJ/T 15-60-2019 | H11: 2 | I11: 15000 | J11: =H11*I11 -> 30000 | L11: 直径500，33根，桩长7米
A12: 10 | D12: 钻芯 | E12: 根 | F12: 总桩数的0.5%-1%，且不少于3点 | G12: 《建筑地基基础检测规范》DBJ/T 15-60-2019 | H12: 3 | I12: 280元/米 | J12: =H12*280*8 -> 6720
A13: 11 | C13: JFW6止水帷幕搅拌桩 | D13: 钻芯 | E13: 根 | F13: 总桩数的0.5%-1%，且不少于3点 | G13: 《建筑地基基础检测规范》DBJ/T 15-60-2019 | H13: 3 | I13: 280/米 | J13: =H13*280*12 -> 10080 | L13: 直径500，72根，桩长11米
A14: 12 | C14: JFW6高压旋喷桩 | D14: 钻芯 | E14: 根 | F14: 总桩数的0.5%-1%，且不少于3点 | G14: 《建筑地基基础检测规范》DBJ/T 15-60-2019 | H14: 3 | I14: 280/米 | J14: =H14*280*12 -> 10080 | L14: 直径500，54根，桩长预估13米
A15: 13 | C15: JFW19止水帷幕搅拌桩 | D15: 钻芯 | E15: 根 | F15: 总桩数的0.5%-1%，且不少于3点 | G15: 《建筑地基基础检测规范》DBJ/T 15-60-2019 | H15: 3 | I15: 280/米 | J15: =H15*280*12 -> 10080 | L15: 直径500，72根，桩长预估11米
A16: 14 | C16: JFW19高压旋喷桩 | D16: 钻芯 | E16: 根 | F16: 总桩数的0.5%-1%，且不少于3点 | G16: 《建筑地基基础检测规范》DBJ/T 15-60-2019 | H16: 3 | I16: 280/米 | J16: =H16*280*12 -> 10080 | L16: 直径500，54根，桩长预估11米
A17: 15 | C17: JFW19软基处理搅拌桩 | D17: 钻芯 | E17: 根 | F17: 总桩数的0.5%-1%，且不少于3点 | G17: 《建筑地基基础检测规范》DBJ/T 15-60-2019 | H17: 3 | I17: 280/米 | J17: =H17*280*8 -> 6720 | L17: 直径500，33根，桩长预估7米
A18: 16 | C18: JFW19软基处理搅拌桩 | D18: 单桩承载力 | E18: 点 | F18: 总桩数的1%，且不少于3点；总桩数少于50根时，不少于2点 | G18: 《建筑地基基础检测规范》DBJ/T 15-60-2019 | H18: 2 | I18: 15000 | J18: =H18*I18 -> 30000
J19: =SUM(J3:J18) -> 576500

Sheet 市政道路
A1: 佛山市高明区富湾大田工业区排水防涝设施建设项目勘察设计检测清单
A2: 序号 | B2: 路名 | C2: 分项工程部位 | D2: 工序名称 | E2: 检测项目 | F2: 单位 | G2: 检测频率 | H2: 工程数量 | I2: 检测数量 | J2: 单价（元） | K2: 小计（元） | L2: 收费依据
A3: 1 | C3: 道路工程 | D3: 路基 | E3: 压实度 | F3: 点 | G3: 每层每1000m2测3点 | H3: 约10000m2，预估回填3层 | I3: 45 | J3: 150.00 | K3: =J3*I3 -> 6750.00 | L3: 粤建检协〔2015〕8号第10.1.4
A4: 2 | D4: 路基顶层 | E4: 弯沉 | F4: 点 | G4: 每车道每20m测1点 | H4: 1000m，2车道 | I4: 50 | J4: 56.00 | K4: =J4*I4 -> 2800.00 | L4: 粤建检协〔2015〕8号第10.1.5
A5: 3 | D5: 中粒式沥青砼AC-20C | E5: 厚度 | F5: 点 | G5: 每层每1000m2测1点 | H5: 10000m2 | I5: 15 | J5: 500.00 | K5: =J5*I5 -> 7500.00 | L5: 粤建检协〔2015〕8号第10.1.6
A6: 4 | E6: 压实度 | F6: 点 | G6: 每层每1000m2测1点 | H6: 10000m2 | I6: 15 | J6: 150.00 | K6: 2250.00 | L6: 粤建检协〔2015〕8号第10.1.4
A7: 5 | E7: 弯沉 | F7: 点 | G7: 每车道每20m测1点 | H7: 1000m，2车道 | I7: 50 | J7: 56.00 | K7: 2800.00 | L7: 粤建检协〔2015〕8号第10.1.5
A8: 6 | D8: 细粒式改性沥青砼AC-13C | E8: 厚度 | F8: 点 | G8: 每层每1000m2测1点 | H8: 10000m2 | I8: 15 | J8: 500.00 | K8: 7500.00 | L8: 粤建检协〔2015〕8号第10.1.6
A9: 7 | E9: 压实度 | F9: 点 | G9: 每层每1000m2测1点 | H9: 10000m2 | I9: 15 | J9: 150.00 | K9: 2250.00 | L9: 粤建检协〔2015〕8号第10.1.4
A10: 8 | E10: 弯沉 | F10: 点 | G10: 每车道每20m测1点 | H10: 1000m，2车道 | I10: 50 | J10: 56.00 | K10: 2800.00 | L10: 粤建检协〔2015〕8号第10.1.5
A11: 9 | E11: 构造深度 | F11: 点 | G11: 每200m测1点 | H11: 1000m，2车道 | I11: 3 | J11: 50.00 | K11: 150.00 | L11: 粤检协[2015]8号文，10.1.7
A12: 10 | E12: 摩擦系数 | F12: 点 | G12: 每200m测1点 | H12: 1000m，2车道 | I12: 3 | J12: 120.00 | K12: 360.00 | L12: 粤检协[2015]8号文，10.1.8
A13: 11 | E13: 渗水系数 | F13: 点 | G13: 每200m测1点 | H13: 1000m，2车道 | I13: 3 | J13: 80.00 | K13: 240.00 | L13: 粤检协[2015]8号文，10.1.9
A14: 12 | E14: 平整度 | F14: 处 | G14: 采用3米直尺，每20m测1处 | H14: 1000m，2车道 | I14: 25 | J14: 30.00 | K14: 750.00 | L14: 粤检协[2015]8号文，10.1.3
A15: 13 | C15: 交通工程 | D15: 标线 | E15: 厚度 | F15: 处 | G15: 道路前中后各取3个测试段，每个测试段测3处，每处测6点 | H15: 54处 | I15: 54 | J15: 20.00 | K15: =I15*J15 -> 1080.00 | L15: 粤建检协〔2015〕8号第10.6.4
A16: 14 | E16: 逆反射系数 | F16: 处 | G16: 道路前中后各取3个测试段，每个测试段测3处，每处测9点 | H16: 81处 | I16: 70 | J16: 200.00 | K16: =I16*J16 -> 14000.00 | L16: 粤建检协〔2015〕8号第10.6.3
A17: 15 | D17: 雨水管道 | E17: 压实度 | F17: 点 | G17: 每层每侧每1000m2测3点 | H17: 约10000m2，管底1层，管侧2层，管顶2层 | I17: 190 | J17: 150.00 | K17: =J17*I17 -> 28500.00 | L17: 粤建检协〔2015〕8号第10.1.4
A18: 16 | D18: 污水管道 | E18: 压实度 | F18: 点 | G18: 每层每侧每1000m2测3点 | H18: 约10000m2，管底1层，管侧2层，管顶2层 | I18: 190 | J18: 150.00 | K18: =J18*I18 -> 28500.00 | L18: 粤建检协〔2015〕8号第10.1.4
A19: 17 | C19: 合计（元） | K19: =SUM(K3:K18) -> 108,230.00

Sheet 监测
A1: 佛山市高明区富湾大田工业区排水防涝设施建设项目第三方监测报价清单
A2: 污水管网部分
A3: 序号 | B3: 单体名称 | C3: 监测项目 | E3: 监测数量 | F3: 单位 | G3: 监测次数 | H3: 单价（元） | I3: 合价 | J3: 备注
I4: （元）
A5: 1 | B5: 高富一路GFW1~GFW10 | C5: （1）围护结构顶部位移监测点 | D5: 水平位移、沉降观测点埋设费 | E5: 10 | F5: 点 | G5: / | H5: 250 | I5: =E5*H5 -> 2500 | J5: 粤建协[2015]8号，3.1.3-①
D6: 水平位移观测点监测费 | E6: 10 | F6: 点·次 | G6: 5 | H6: 74 | I6: =E6*H6*G6 -> 3700 | J6: 粤建协[2015]8号，3.1.3-④，二等单向简单
D7: 沉降观测点监测费 | E7: 10 | F7: 点·次 | G7: 5 | H7: 50 | I7: =E7*H7*G7 -> 2500 | J7: 粤建协[2015]8号，3.1.1-③，二等单向简单
C8: （3）周边地表竖向位移监测点 | D8: 沉降观测点埋设费 | E8: 10 | F8: 点 | G8: / | H8: 250 | I8: =E8*H8 -> 2500 | J8: 粤建协[2015]8号，3.1.1-①
D9: 沉降观测点监测费 | E9: 10 | F9: 点·次 | G9: 5 | H9: 50 | I9: =E9*H9*G9 -> 2500 | J9: 粤建协[2015]8号，3.1.1-③，二等单向简单
C10: （5）技术服务费=监测费*0.22（除地下水位及深层水平位移） | I10: =(I6+I7+I9)*0.22 -> 1914
C11: （6）小计 | I11: =SUM(I5:I10) -> 15614
A12: 2 | B12: 华富路HFW1~HFW3、HFW16~HFW17 | C12: （1）围护结构顶部位移监测点 | D12: 水平位移、沉降观测点埋设费 | E12: 4 | F12: 点 | G12: / | H12: 250 | I12: =E12*H12 -> 1000 | J12: 粤建协[2015]8号，3.1.3-①
D13: 水平位移观测点监测费 | E13: 4 | F13: 点·次 | G13: 5 | H13: 74 | I13: =E13*H13*G13 -> 1480 | J13: 粤建协[2015]8号，3.1.3-④，二等单向简单
D14: 沉降观测点监测费 | E14: 4 | F14: 点·次 | G14: 5 | H14: 50 | I14: =E14*H14*G14 -> 1000 | J14: 粤建协[2015]8号，3.1.1-③，二等单向简单
C15: （2）周边地表竖向位移监测点 | D15: 沉降观测点埋设费 | E15: 4 | F15: 点 | G15: / | H15: 250 | I15: =E15*H15 -> 1000 | J15: 粤建协[2015]8号，3.1.1-①
D16: 沉降观测点监测费 | E16: 4 | F16: 点·次 | G16: 5 | H16: 50 | I16: =E16*H16*G16 -> 1000 | J16: 粤建协[2015]8号，3.1.1-③，二等单向简单
C17: （5）技术服务费=监测费*0.22（除地下水位及深层水平位移） | I17: =(I13+I14+I16)*0.22 -> 765.6
C18: （6）小计 | I18: =SUM(I12:I17) -> 6245.6
A19: 3 | B19: 东诚路DCW13-1~DCW13-3 | C19: （1）围护结构顶部位移监测点 | D19: 水平位移、沉降观测点埋设费 | E19: 3 | F19: 点 | G19: / | H19: 250 | I19: =E19*H19 -> 750 | J19: 粤建协[2015]8号，3.1.3-①
D20: 水平位移观测点监测费 | E20: 3 | F20: 点·次 | G20: 5 | H20: 74 | I20: =E20*H20*G20 -> 1110 | J20: 粤建协[2015]8号，3.1.3-④，二等单向简单
D21: 沉降观测点监测费 | E21: 3 | F21: 点·次 | G21: 5 | H21: 50 | I21: =E21*H21*G21 -> 750 | J21: 粤建协[2015]8号，3.1.1-③，二等单向简单
C22: （3）周边地表竖向位移监测点 | D22: 沉降观测点埋设费 | E22: 3 | F22: 点 | G22: / | H22: 250 | I22: =E22*H22 -> 750 | J22: 粤建协[2015]8号，3.1.1-①
D23: 沉降观测点监测费 | E23: 3 | F23: 点·次 | G23: 5 | H23: 50 | I23: =E23*H23*G23 -> 750 | J23: 粤建协[2015]8号，3.1.1-③，二等单向简单
C24: （5）技术服务费=监测费*0.22（除地下水位及深层水平位移） | I24: =(I20+I21+I23)*0.22 -> 574.2
C25: （6）小计 | I25: =SUM(I19:I24) -> 4684.2
A26: 4 | B26: 荷富路(富湾湖段)HFW1~HFW2 | C26: （1）围护结构顶部位移监测点 | D26: 水平位移、沉降观测点埋设费 | E26: 2 | F26: 点 | G26: / | H26: 250 | I26: =E26*H26 -> 500 | J26: 粤建协[2015]8号，3.1.3-①
D27: 水平位移观测点监测费 | E27: 2 | F27: 点·次 | G27: 5 | H27: 74 | I27: =E27*H27*G27 -> 740 | J27: 粤建协[2015]8号，3.1.3-④，二等单向简单
D28: 沉降观测点监测费 | E28: 2 | F28: 点·次 | G28: 5 | H28: 50 | I28: =E28*H28*G28 -> 500 | J28: 粤建协[2015]8号，3.1.1-③，二等单向简单
C29: （2）周边建筑物沉降监测点 | D29: 沉降观测点埋设费 | E29: 6 | F29: 点 | G29: / | H29: 250 | I29: 1500 | J29: 粤建协[2015]8号，3.1.1-①
D30: 沉降观测点监测费 | E30: 6 | F30: 点·次 | G30: 5 | H30: 50 | I30: =E30*H30*G30 -> 1500 | J30: 粤建协[2015]8号，3.1.1-③，二等单向简单
C31: （3）周边地表竖向位移监测点 | D31: 沉降观测点埋设费 | E31: 2 | F31: 点 | G31: / | H31: 250 | I31: 500 | J31: 粤建协[2015]8号，3.1.1-①
D32: 沉降观测点监测费 | E32: 2 | F32: 点·次 | G32: 5 | H32: 50 | I32: =E32*H32*G32 -> 500 | J32: 粤建协[2015]8号，3.1.1-③，二等单向简单
C33: （5）技术服务费=监测费*0.22（除地下水位及深层水平位移） | I33: =(I27+I28+I32+I30)*0.22 -> 712.8
C34: （6）小计 | I34: =SUM(I26:I33) -> 6452.8
A35: 5 | B35: 金富雅苑JFW6~JFW19段污水顶管沉井(5M) | C35: （1）围护结构顶部位移监测点 | D35: 水平位移、沉降观测点埋设费 | E35: 12 | F35: 点 | G35: / | H35: 250 | I35: =E35*H35 -> 3000 | J35: 粤建协[2015]8号，3.1.3-①
D36: 水平位移观测点监测费 | E36: 12 | F36: 点·次 | G36: 5 | H36: 74 | I36: =E36*H36*G36 -> 4440 | J36: 粤建协[2015]8号，3.1.3-④，二等单向简单
D37: 沉降观测点监测费 | E37: 12 | F37: 点·次 | G37: 5 | H37: 50 | I37: 3000 | J37: 粤建协[2015]8号，3.1.1-③，二等单向简单
C38: （2）深层水平位移监测点 | D38: 测斜管埋设费 | E38: 24 | F38: m | G38: / | H38: 180 | I38: 4320 | J38: 粤建协[2015]8号，3.1.5-①，每孔按8米计算
D39: 监测费 | E39: 3 | F39: 点·次 | G39: 5 | H39: 600 | I39: 9000 | J39: 粤建协[2015]8号，3.1.5-③
C40: （3）周边地表竖向位移监测点 | D40: 沉降观测点埋设费 | E40: 70 | F40: 点 | G40: / | H40: 250 | I40: 17500 | J40: 粤建协[2015]8号，3.1.1-①
D41: 沉降观测点监测费 | E41: 70 | F41: 点·次 | G41: 5 | H41: 50 | I41: =E41*H41*G41 -> 17500 | J41: 粤建协[2015]8号，3.1.1-③，二等单向简单
C42: （4）地下水位监测点 | D42: 水位管埋设费 | E42: 24 | F42: m | G42: / | H42: 180 | I42: =E42*H42 -> 4320 | J42: 粤建协[2015]8号，3.1.10-①，每孔按8米计算
D43: 清孔费 | E43: 3 | F43: 孔 | G43: / | H43: 420 | I43: =E43*H43 -> 1260 | J43: 粤建协[2015]8号，3.1.10-②
D44: 监测费 | E44: 3 | F44: 点·次 | G44: 5 | H44: 200 | I44: =E44*H44*G44 -> 3000 | J44: 粤建协[2015]8号，3.1.10-③
C45: （5）周边建筑物沉降监测点 | D45: 沉降观测点埋设费 | E45: 10 | F45: 点 | G45: / | H45: 250 | I45: =E45*H45 -> 2500 | J45: 粤建协[2015]8号，3.1.1-①
D46: 沉降观测点监测费 | E46: 10 | F46: 点·次 | G46: 5 | H46: 50 | I46: =E46*H46*G46 -> 2500 | J46: 粤建协[2015]8号，3.1.1-③，二等单向简单
C47: （6）周边管线变形监测点 | D47: 沉降观测点埋设费 | E47: 5 | F47: 个 | G47: / | H47: 250 | I47: =E47*H47 -> 1250 | J47: 粤建协[2015]8号，3.1.1-①
D48: 沉降观测点监测费 | E48: 5 | F48: 点·次 | G48: 5 | H48: 50 | I48: =E48*H48*G48 -> 1250 | J48: 粤建协[2015]8号，3.1.1-③，二等单向简单
C49: （7）技术服务费=监测费*0.22（除地下水位及深层水平位移） | I49: =(I36+I37+I41+I46+I48)*0.22 -> 6311.8
C50: （8）小计 | I50: =SUM(I35:I49) -> 81151.8
A51: 6 | B51: 污水管网部分合计 | I51: =I50+I34+I25+I11+I18 -> 114148.4
A52: 雨水管网部分
A53: 1 | B53: 东诚路DCY4~DCY45 | C53: （1）围护结构顶部位移监测点 | D53: 水平位移、沉降观测点埋设费 | E53: 39 | F53: 点 | G53: / | H53: 250 | I53: =E53*H53 -> 9750 | J53: 粤建协[2015]8号，3.1.3-①
D54: 水平位移观测点监测费 | E54: 39 | F54: 点·次 | G54: 5 | H54: 74 | I54: =E54*H54*G54 -> 14430 | J54: 粤建协[2015]8号，3.1.3-④，二等单向简单
D55: 沉降观测点监测费 | E55: 39 | F55: 点·次 | G55: 5 | H55: 50 | I55: =E55*H55*G55 -> 9750 | J55: 粤建协[2015]8号，3.1.1-③，二等单向简单
C56: （3）周边地表竖向位移监测点 | D56: 沉降观测点埋设费 | E56: 39 | F56: 点 | G56: / | H56: 250 | I56: =E56*H56 -> 9750 | J56: 粤建协[2015]8号，3.1.1-①
D57: 沉降观测点监测费 | E57: 39 | F57: 点·次 | G57: 5 | H57: 50 | I57: =E57*H57*G57 -> 9750 | J57: 粤建协[2015]8号，3.1.1-③，二等单向简单
C58: （6）技术服务费=监测费*0.22（除地下水位及深层水平位移） | I58: =(I54+I55+I57)*0.22 -> 7464.6
C59: （7）小计 | I59: =SUM(I53:I58) -> 60894.6
A60: 2 | B60: 华富路HFY11~HFY45 | C60: （1）围护结构顶部位移监测点 | D60: 水平位移、沉降观测点埋设费 | E60: 33 | F60: 点 | G60: / | H60: 250 | I60: =E60*H60 -> 8250 | J60: 粤建协[2015]8号，3.1.3-①
D61: 水平位移观测点监测费 | E61: 33 | F61: 点·次 | G61: 5 | H61: 74 | I61: =E61*H61*G61 -> 12210 | J61: 粤建协[2015]8号，3.1.3-④，二等单向简单
D62: 沉降观测点监测费 | E62: 33 | F62: 点·次 | G62: 5 | H62: 50 | I62: =E62*H62*G62 -> 8250 | J62: 粤建协[2015]8号，3.1.1-③，二等单向简单
C63: （3）周边地表竖向位移监测点 | D63: 沉降观测点埋设费 | E63: 33 | F63: 点 | G63: / | H63: 250 | I63: =E63*H63 -> 8250 | J63: 粤建协[2015]8号，3.1.1-①
D64: 沉降观测点监测费 | E64: 33 | F64: 点·次 | G64: 5 | H64: 50 | I64: =E64*H64*G64 -> 8250 | J64: 粤建协[2015]8号，3.1.1-③，二等单向简单
C65: （5）技术服务费=监测费*0.22（除地下水位及深层水平位移） | I65: =(I61+I62+I64)*0.22 -> 6316.2
C66: （6）小计 | I66: =SUM(I60:I65) -> 51526.2
A67: 3 | B67: E匝道外明渠开挖深度超过3m | C67: （1）围护结构顶部位移监测点 | D67: 水平位移、沉降观测点埋设费 | E67: 9 | F67: 点 | G67: / | H67: 250 | I67: =E67*H67 -> 2250 | J67: 粤建协[2015]8号，3.1.3-①
D68: 水平位移观测点监测费 | E68: 9 | F68: 点·次 | G68: 5 | H68: 74 | I68: =E68*H68*G68 -> 3330 | J68: 粤建协[2015]8号，3.1.3-④，二等单向简单
D69: 沉降观测点监测费 | E69: 9 | F69: 点·次 | G69: 5 | H69: 50 | I69: =E69*H69*G69 -> 2250 | J69: 粤建协[2015]8号，3.1.1-③，二等单向简单
C70: （3）周边地表竖向位移监测点 | D70: 沉降观测点埋设费 | E70: 9 | F70: 点 | G70: / | H70: 250 | I70: =E70*H70 -> 2250 | J70: 粤建协[2015]8号，3.1.1-①
D71: 沉降观测点监测费 | E71: 9 | F71: 点·次 | G71: 5 | H71: 50 | I71: =E71*H71*G71 -> 2250 | J71: 粤建协[2015]8号，3.1.1-③，二等单向简单
C72: （4）地下水位监测点 | D72: 水位管埋设费 | E72: 45 | F72: m | G72: / | H72: 180 | I72: 8100 | J72: 粤建协[2015]8号，3.1.10-①，每孔按5米计算
D73: 清孔费 | E73: 9 | F73: 孔 | G73: / | H73: 420 | I73: 3780 | J73: 粤建协[2015]8号，3.1.10-②
D74: 监测费 | E74: 9 | F74: 点·次 | G74: 5 | H74: 200 | I74: =E74*H74*G74 -> 9000 | J74: 粤建协[2015]8号，3.1.10-③
C75: （5）桥墩沉降观测 | D75: 沉降观测点埋设费 | E75: 48 | F75: 点 | G75: / | H75: 250 | I75: =E75*H75 -> 12000 | J75: 粤建协[2015]8号，3.1.1-①
D76: 沉降观测点监测费 | E76: 48 | F76: 点·次 | G76: 5 | H76: 50 | I76: 12000 | J76: 粤建协[2015]8号，3.1.1-③，二等单向简单
C77: （6）桥墩水平位移观测点 | D77: 水平位移观测点埋设费 | E77: 48 | F77: 点 | G77: / | H77: 250 | I77: =E77*H77 -> 12000 | J77: 粤建协[2015]8号，3.1.3-①
D78: 水平位移观测点监测费 | E78: 48 | F78: 点·次 | G78: 5 | H78: 74 | I78: 17760 | J78: 粤建协[2015]8号，3.1.3-④，二等单向简单
C79: （6）技术服务费=监测费*0.22（除地下水位及深层水平位移） | I79: =(I68+I69+I71+I76+I78)*0.22 -> 8269.8
C80: （7）小计 | I80: =SUM(I67:I79) -> 95239.8
A81: 4 | B81: 荷富路(富湾湖段)HFY5~HFY9，HFY14~HFY16 | C81: （1）围护结构顶部位移监测点 | D81: 水平位移、沉降观测点埋设费 | E81: 7 | F81: 点 | G81: / | H81: 250 | I81: =E81*H81 -> 1750 | J81: 粤建协[2015]8号，3.1.3-①
D82: 水平位移观测点监测费 | E82: 7 | F82: 点·次 | G82: 5 | H82: 74 | I82: =E82*H82*G82 -> 2590 | J82: 粤建协[2015]8号，3.1.3-④，二等单向简单
D83: 沉降观测点监测费 | E83: 7 | F83: 点·次 | G83: 5 | H83: 50 | I83: =E83*H83*G83 -> 1750 | J83: 粤建协[2015]8号，3.1.1-③，二等单向简单
C84: （3）周边地表竖向位移监测点 | D84: 沉降观测点埋设费 | E84: 20 | F84: 点 | G84: / | H84: 250 | I84: =E84*H84 -> 5000 | J84: 粤建协[2015]8号，3.1.1-①
D85: 沉降观测点监测费 | E85: 20 | F85: 点·次 | G85: 5 | H85: 50 | I85: =E85*H85*G85 -> 5000 | J85: 粤建协[2015]8号，3.1.1-③，二等单向简单
C86: （5）技术服务费=监测费*0.22（除地下水位及深层水平位移） | I86: =(I82+I83+I85)*0.22 -> 2054.8
C87: （6）小计 | I87: =SUM(I81:I86) -> 18144.8
A88: 5 | B88: 荷富路(富湾湖段)HFY9~HFY10段 | C88: （1）围护结构顶部位移监测点 | D88: 水平位移、沉降观测点埋设费 | E88: 2 | F88: 点 | G88: / | H88: 250 | I88: =E88*H88 -> 500 | J88: 粤建协[2015]8号，3.1.3-①
D89: 水平位移观测点监测费 | E89: 2 | F89: 点·次 | G89: 7 | H89: 74 | I89: =E89*H89*G89 -> 1036 | J89: 粤建协[2015]8号，3.1.3-④，二等单向简单
D90: 沉降观测点监测费 | E90: 2 | F90: 点·次 | G90: 7 | H90: 50 | I90: =E90*H90*G90 -> 700 | J90: 粤建协[2015]8号，3.1.1-③，二等单向简单
C91: （2）周边地表竖向位移监测点 | D91: 沉降观测点埋设费 | E91: 10 | F91: 点 | G91: / | H91: 250 | I91: =E91*H91 -> 2500 | J91: 粤建协[2015]8号，3.1.1-①
D92: 沉降观测点监测费 | E92: 10 | F92: 点·次 | G92: 7 | H92: 50 | I92: =E92*H92*G92 -> 3500 | J92: 粤建协[2015]8号，3.1.1-③，二等单向简单
C93: （3）周边管线沉降监测点 | D93: 沉降观测点埋设费 | E93: 15 | F93: 个 | G93: / | H93: 250 | I93: =E93*H93 -> 3750 | J93: 粤建协[2015]8号，3.1.1-①
D94: 沉降观测点监测费 | E94: 15 | F94: 点·次 | G94: 7 | H94: 50 | I94: =E94*H94*G94 -> 5250 | J94: 粤建协[2015]8号，3.1.1-③，二等单向简单
C95: （4）技术服务费=监测费*0.22（除地下水位及深层水平位移） | I95: =(I89+I90+I92+I94)*0.22 -> 2306.92
C96: （5）小计 | I96: =SUM(I88:I95) -> 19542.92
A97: 6 | B97: 荷富路(富湾湖段)HFY10沉井)+58顶管段 | C97: （1）围护结构顶部位移监测点 | D97: 水平位移、沉降观测点埋设费 | E97: 4 | F97: 点 | G97: / | H97: 250 | I97: =E97*H97 -> 1000 | J97: 粤建协[2015]8号，3.1.3-①
D98: 水平位移观测点监测费 | E98: 4 | F98: 点·次 | G98: 7 | H98: 74 | I98: =E98*H98*G98 -> 2072 | J98: 粤建协[2015]8号，3.1.3-④，二等单向简单
D99: 沉降观测点监测费 | E99: 4 | F99: 点·次 | G99: 7 | H99: 50 | I99: =E99*H99*G99 -> 1400 | J99: 粤建协[2015]8号，3.1.1-③，二等单向简单
C100: （2）深层水平位移监测点 | D100: 测斜管埋设费 | E100: 10 | F100: m | G100: / | H100: 180 | I100: 1800 | J100: 粤建协[2015]8号，3.1.5-①，每孔按5米计算
D101: 监测费 | E101: 2 | F101: 点·次 | G101: 7 | H101: 600 | I101: =E101*H101*G101 -> 8400 | J101: 粤建协[2015]8号，3.1.5-③
C102: （3）周边地表竖向位移监测点 | D102: 沉降观测点埋设费 | E102: 35 | F102: 点 | G102: / | H102: 250 | I102: 8750 | J102: 粤建协[2015]8号，3.1.1-①
D103: 沉降观测点监测费 | E103: 35 | F103: 点·次 | G103: 7 | H103: 50 | I103: 12250 | J103: 粤建协[2015]8号，3.1.1-③，二等单向简单
C104: （4）地下水位监测点 | D104: 水位管埋设费 | E104: 10 | F104: m | G104: / | H104: 180 | I104: =E104*H104 -> 1800 | J104: 粤建协[2015]8号，3.1.10-①，每孔按5米计算
D105: 清孔费 | E105: 2 | F105: 孔 | G105: / | H105: 420 | I105: =E105*H105 -> 840 | J105: 粤建协[2015]8号，3.1.10-②
D106: 监测费 | E106: 2 | F106: 点·次 | G106: 7 | H106: 200 | I106: 2800 | J106: 粤建协[2015]8号，3.1.10-③
C107: （5）周边管线沉降监测点 | D107: 沉降观测点埋设费 | E107: 10 | F107: 个 | G107: / | H107: 250 | I107: =E107*H107 -> 2500 | J107: 粤建协[2015]8号，3.1.1-①
D108: 沉降观测点监测费 | E108: 10 | F108: 点·次 | G108: 7 | H108: 50 | I108: =E108*H108*G108 -> 3500 | J108: 粤建协[2015]8号，3.1.1-③，二等单向简单
C109: （6）技术服务费=监测费*0.22（除地下水位及深层水平位移） | I109: =(I98+I99+I103+I108)*0.22 -> 4228.84
C110: （7）小计 | I110: =SUM(I97:I109) -> 51340.84
A111: 7 | B111: 华富路HFY45~HFY49雨水箱涵基坑开挖深度均超过5米，采用15米钢板桩支护开挖,E匝道下方明渠基坑开挖深度超过5米，采用钢板桩支护开挖(5m)。 | C111: （1）围护结构顶部位移监测点 | D111: 水平位移、沉降观测点埋设费 | E111: 6 | F111: 点 | G111: / | H111: 250 | I111: =E111*H111 -> 1500 | J111: 粤建协[2015]8号，3.1.3-①
D112: 水平位移观测点监测费 | E112: 6 | F112: 点·次 | G112: 15 | H112: 74 | I112: =E112*H112*G112 -> 6660 | J112: 粤建协[2015]8号，3.1.3-④，二等单向简单
D113: 沉降观测点监测费 | E113: 6 | F113: 点·次 | G113: 15 | H113: 50 | I113: 4500 | J113: 粤建协[2015]8号，3.1.1-③，二等单向简单
C114: （2）深层水平位移监测点 | D114: 测斜管埋设费 | E114: 48 | F114: m | G114: / | H114: 180 | I114: 8640 | J114: 粤建协[2015]8号，3.1.5-①，每孔按8米计算
D115: 监测费 | E115: 6 | F115: 点·次 | G115: 15 | H115: 600 | I115: 54000 | J115: 粤建协[2015]8号，3.1.5-③
C116: （3）周边地表竖向位移监测点 | D116: 沉降观测点埋设费 | E116: 6 | F116: 点 | G116: / | H116: 250 | I116: 1500 | J116: 粤建协[2015]8号，3.1.1-①
D117: 沉降观测点监测费 | E117: 6 | F117: 点·次 | G117: 15 | H117: 50 | I117: =E117*H117*G117 -> 4500 | J117: 粤建协[2015]8号，3.1.1-③，二等单向简单
C118: （4）地下水位监测点 | D118: 水位管埋设费 | E118: 48 | F118: m | G118: / | H118: 180 | I118: =E118*H118 -> 8640 | J118: 粤建协[2015]8号，3.1.10-①，每孔按8米计算
D119: 清孔费 | E119: 6 | F119: 孔 | G119: / | H119: 420 | I119: 2520 | J119: 粤建协[2015]8号，3.1.10-②
D120: 监测费 | E120: 6 | F120: 点·次 | G120: 15 | H120: 200 | I120: 18000 | J120: 粤建协[2015]8号，3.1.10-③
C121: （5）桥墩倾斜观测 | D121: 测点埋设费 | E121: 24 | F121: 点 | G121: / | H121: 250 | I121: 3750 | J121: 粤建协[2015]8号，3.1.4-②
D122: 监测费 | E122: 24 | F122: 点·次 | G122: 7 | H122: 740 | I122: 166500 | J122: 粤建协[2015]8号，3.1.4-③，≤60m简单
C123: （6）桥墩沉降观测 | D123: 沉降观测点埋设费 | E123: 48 | F123: 点 | G123: / | H123: 250 | I123: 3750 | J123: 粤建协[2015]8号，3.1.1-①
D124: 沉降观测点监测费 | E124: 48 | F124: 点·次 | G124: 15 | H124: 50 | I124: 11250 | J124: 粤建协[2015]8号，3.1.1-③，二等单向简单
C125: （7）桥墩水平位移观测点 | D125: 水平位移观测点埋设费 | E125: 48 | F125: 点 | G125: / | H125: 250 | I125: 3750 | J125: 粤建协[2015]8号，3.1.3-①
D126: 水平位移观测点监测费 | E126: 48 | F126: 点·次 | G126: 15 | H126: 74 | I126: 16650 | J126: 粤建协[2015]8号，3.1.3-④，二等单向简单
C127: （8）周边管线沉降监测点 | D127: 沉降观测点埋设费 | E127: 3 | F127: 个 | G127: / | H127: 250 | I127: 750 | J127: 粤建协[2015]8号，3.1.1-①
D128: 沉降观测点监测费 | E128: 3 | F128: 点·次 | G128: 7 | H128: 50 | I128: 1050 | J128: 粤建协[2015]8号，3.1.1-③，二等单向简单
C129: （9）技术服务费=监测费*0.22（除地下水位及深层水平位移） | I129: =(I112+I113+I117+I128+I126+I124+I122)*0.22 -> 46444.2
C130: （10）小计 | I130: =SUM(I111:I129) -> 364354.2
A131: 8 | B131: 雨水管网部分合计 | I131: =I130+I110+I96+I80+I66+I59 -> 642898.56
A132: 总合计 | N132: =35/90 -> 0.3888888889
A133: 1 | B133: 总合计 | I133: =I131+I51 -> 757046.96
A134: 说明：
A135: 1、收费标准按《广东省房屋建筑和市政工程工程质量安全检测收费指导价》（粤建协[2015]8号）计取。
